fUST/lending_fUST_20251008
["ID","MTS","AMOUNT","RATE_DAILY","PERIOD"]
[390022782,1759936252456,-500.0,0.00021369,2]
[390022784,1759936252466,-500.0,0.00021369,2]
[390022786,1759936252475,-500.0,0.00021369,2]
[390022788,1759936252485,-281.84468918,0.00021369,2]
[390022790,1759936252494,-490.44994956,0.00021369,2]
[390022792,1759936252503,-500.0,0.00021369,2]
[390022794,1759936252512,-500.0,0.00021369,2]
[390022796,1759936252520,-500.0,0.00021369,2]
[390022797,1759936252530,-500.0,0.00021369,2]
[390022799,1759936252539,-500.0,0.00021369,2]
[390022801,1759936252548,-500.0,0.00021369,2]
[390022803,1759936252557,-500.0,0.00021369,2]
[390022805,1759936252566,-237.55,0.00021369,2]
[390022807,1759936252574,-500.0,0.00021369,2]
[390022809,1759936252583,-1367.27,0.00021369,2]
[390022811,1759936252592,-500.0,0.00021369,2]
[390022813,1759936252601,-480.22707129,0.00021369,2]
[390022815,1759936252610,-500.0,0.00021369,2]
[390022817,1759936252619,-500.0,0.00021369,2]
[390022819,1759936252629,-500.0,0.00021369,2]
[390022821,1759936252638,-2031.1,0.00021369,2]
[390022823,1759936252647,-500.0,0.00021369,2]
[390022825,1759936252656,-520.0,0.00021369,3]
[390022827,1759936252665,-502.62851123,0.00021369,2]
[390022829,1759936252674,-642.3,0.00021369,2]
[390022831,1759936252684,-500.0,0.00021369,2]
[390022833,1759936252694,-500.0,0.00021369,2]
[390022835,1759936252703,-495.74509199,0.00021369,2]
[390022837,1759936252713,-506.90315431,0.00021369,2]
[390022839,1759936252722,-500.0,0.00021369,2]
[390022841,1759936252731,-500.0,0.00021369,2]
[390022843,1759936252740,-483.47795567,0.00021369,2]
[390022845,1759936252750,-455.37443687,0.00021369,2]
[390022847,1759936252759,-500.0,0.00021369,2]
[390022849,1759936252769,-500.0,0.00021369,2]
[390022851,1759936252778,-500.0,0.00021369,2]
[390022853,1759936252787,-480.50841786,0.00021369,2]
[390022855,1759936252797,-500.0,0.00021369,2]
[390022857,1759936252806,-500.0,0.00021369,2]
[390022859,1759936252815,-500.0,0.00021369,2]
[390022861,1759936252824,-500.0,0.00021369,2]
[390022863,1759936252833,-500.0,0.00021369,2]
[390022865,1759936252842,-500.0,0.00021369,2]
[390022867,1759936252851,-669.67,0.00021369,2]
[390022869,1759936252861,-500.0,0.00021369,2]
[390022871,1759936252872,-500.0,0.00021369,2]
[390022873,1759936252881,-500.0,0.00021369,2]
[390022875,1759936252890,-500.0,0.00021369,2]
[390022877,1759936252900,-500.24562476,0.00021369,2]
[390022879,1759936252909,-500.0,0.00021369,2]
[390022881,1759936252918,-500.0,0.00021369,2]
[390022883,1759936252927,-500.0,0.00021369,2]
[390022885,1759936252936,-500.0,0.00021369,2]
[390022887,1759936252945,-500.0,0.00021369,2]
[390022889,1759936252955,-500.0,0.00021369,2]
[390022890,1759936252964,-337.82991065,0.00021369,2]
[390022892,1759936252973,-2271.04,0.00021369,2]
[390022894,1759936252983,-500.0,0.00021369,2]
[390022896,1759936252992,-500.0,0.00021369,2]
[390022898,1759936253002,-500.0,0.00021369,2]
[390022900,1759936253011,-757.32,0.00021369,2]
[390022902,1759936253021,-550.82,0.00021369,2]
[390022904,1759936253030,-500.0,0.00021369,2]
[390022906,1759936253040,-547.32,0.00021369,2]
[390022908,1759936253049,-500.0,0.00021369,2]
[390022910,1759936253059,-500.0,0.00021369,2]
[390022912,1759936253068,-500.0,0.00021369,2]
[390022914,1759936253078,-2544.25,0.00021369,2]
[390022916,1759936253088,-500.0,0.00021369,2]
[390022918,1759936253098,-500.0,0.00021369,2]
[390022920,1759936253108,-550.09,0.00021369,2]
[390022922,1759936253117,-822.52,0.00021369,2]
[390022924,1759936253127,-500.0,0.00021369,2]
[390022926,1759936253136,-500.0,0.00021369,2]
[390022928,1759936253146,-509.37,0.00021369,2]
[390022930,1759936253156,-822.15,0.00021369,2]
[390022932,1759936253166,-500.0,0.00021369,2]
[390022934,1759936253176,-500.0,0.00021369,2]
[390022936,1759936253186,-500.0,0.00021369,2]
[390022938,1759936253196,-500.0,0.00021369,2]
[390022940,1759936253205,-2397.34,0.00021369,2]
[390022942,1759936253215,-500.0,0.00021369,2]
[390022944,1759936253225,-603.35,0.00021369,2]
[390022946,1759936253234,-364.75885089,0.00021369,2]
[390022948,1759936253243,-500.0,0.00021369,2]
[390022950,1759936253252,-500.0,0.00021369,2]
[390022952,1759936253262,-500.0,0.00021369,2]
[390022954,1759936253270,-500.0,0.00021369,2]
[390022956,1759936253284,-500.0,0.00021369,2]
[390022958,1759936253293,-500.0,0.00021369,2]
[390022960,1759936253302,-500.0,0.00021369,2]
[390022962,1759936253311,-1823.75,0.00021369,2]
[390022964,1759936253322,-500.33806792,0.00021369,2]
[390022966,1759936253331,-500.0,0.00021369,2]
[390022968,1759936253340,-500.0,0.00021369,2]
[390022970,1759936253350,-500.0,0.00021369,2]
[390022972,1759936253360,-500.0,0.00021369,2]
[390022974,1759936253369,-1563.97,0.00021369,2]
[390022976,1759936253379,-500.0,0.00021369,2]
[390022977,1759936253388,-500.0,0.00021369,2]
[390022979,1759936253398,-500.0,0.00021369,2]
[390022981,1759936253407,-722.71,0.00021369,2]
[390022983,1759936253416,-707.73,0.00021369,2]
[390022985,1759936253425,-518.49,0.00021369,2]
[390022987,1759936253434,-756.3,0.00021369,2]
[390022989,1759936253443,-1558.89,0.00021369,2]
[390022991,1759936253452,-500.0,0.00021369,2]
[390022993,1759936253461,-1131.96,0.00021369,2]
[390022995,1759936253470,-500.0,0.00021369,2]
[390022997,1759936253479,-613.48,0.00021369,2]
[390022999,1759936253488,-903.67,0.00021369,2]
[390023001,1759936253498,-500.0,0.00021369,2]
[390023003,1759936253507,-521.56841181,0.00021369,2]
[390023005,1759936253516,-500.0,0.00021369,2]
[390023007,1759936253525,-500.0,0.00021369,2]
[390023009,1759936253535,-932.42,0.00021369,2]
[390023011,1759936253543,-1070.82,0.00021369,2]
[390023013,1759936253552,-500.0,0.00021369,2]
[390023015,1759936253562,-500.0,0.00021369,2]
[390023017,1759936253571,-650.79,0.00021369,2]
[390023019,1759936253580,-500.0,0.00021369,2]
[390023021,1759936253589,-500.0,0.00021369,2]
[390023023,1759936253598,-500.0,0.00021369,2]
[390023025,1759936253607,-500.0,0.00021369,2]
[390023026,1759936253616,-2826.28,0.00021369,2]
[390023028,1759936253626,-805.74,0.00021369,2]
[390023030,1759936253635,-585.34,0.00021369,2]
[390023032,1759936253644,-464.31311443,0.00021369,2]
[390023034,1759936253654,-500.0,0.00021369,2]
[390023036,1759936253662,-500.0,0.00021369,2]
[390023038,1759936253672,-500.0,0.00021369,2]
[390023040,1759936253681,-1789.01,0.00021369,2]
[390023042,1759936253690,-500.0,0.00021369,2]
[390023044,1759936253699,-753.51,0.00021369,2]
[390023046,1759936253708,-501.10107604,0.00021369,2]
[390023048,1759936253718,-1207.33,0.00021369,2]
[390023050,1759936253728,-583.02,0.00021369,2]
[390023052,1759936253737,-500.0,0.00021369,2]
[390023054,1759936253746,-480.51684085,0.00021369,2]
[390023056,1759936253756,-500.0,0.00021369,2]
[390023058,1759936253765,-500.0,0.00021369,2]
[390023060,1759936253774,-1006.35,0.00021369,2]
[390023062,1759936253784,-500.0,0.00021369,2]
[390023064,1759936253792,-1014.27,0.00021369,2]
[390023066,1759936253801,-476.71024608,0.00021369,2]
[390023068,1759936253811,-500.0,0.00021369,2]
[390023070,1759936253821,-500.0,0.00021369,2]
[390023072,1759936253831,-500.0,0.00021369,2]
[390023074,1759936253840,-1222.34,0.00021369,2]
[390023076,1759936253849,-500.0,0.00021369,2]
[390023078,1759936253859,-500.0,0.00021369,2]
[390023080,1759936253868,-5753.25,0.00021369,2]
[390023082,1759936253878,-1062.51,0.00021369,2]
[390023084,1759936253888,-461.60812861,0.00021369,2]
[390023086,1759936253897,-500.0,0.00021369,2]
[390023088,1759936253907,-481.87688181,0.00021369,2]
[390023090,1759936253917,-500.0,0.00021369,2]
[390023092,1759936253926,-1466.6,0.00021369,2]
[390023093,1759936253935,-284.7020741,0.00021369,2]
[390023095,1759936253944,-500.0,0.00021369,2]
[390023097,1759936253955,-500.0,0.00021369,2]
[390023099,1759936253966,-1470.61,0.00021369,2]
[390023101,1759936253975,-500.0,0.00021369,2]
[390023103,1759936253985,-500.0,0.00021369,2]
[390023105,1759936253994,-500.0,0.00021369,2]
[390023107,1759936254005,-500.0,0.00021369,2]
[390023109,1759936254014,-500.0,0.00021369,2]
[390023111,1759936254024,-500.0,0.00021369,2]
[390023113,1759936254033,-547.51,0.00021369,2]
[390023115,1759936254043,-500.0,0.00021369,2]
[390023117,1759936254052,-788.97,0.00021369,2]
[390023119,1759936254062,-904.42,0.00021369,2]
[390023121,1759936254071,-604.66,0.00021369,2]
[390023123,1759936254080,-1332.81,0.00021369,2]
[390023125,1759936254090,-935.55,0.00021369,2]
[390023127,1759936254099,-541.53,0.00021369,2]
[390023129,1759936254108,-500.0,0.00021369,2]
[390023131,1759936254118,-500.0,0.00021369,2]
[390023132,1759936254127,-533.6232091,0.00021369,2]
[390023133,1759936254136,-500.0,0.00021369,2]
[390023134,1759936254144,-500.0,0.00021369,2]
[390023135,1759936254153,-400.00560112,0.00021369,2]
[390023136,1759936254161,-771.18,0.00021369,2]
[390023137,1759936254170,-1154.46,0.00021369,2]
[390023138,1759936254179,-500.0,0.00021369,2]
[390023139,1759936254188,-506.56,0.00021369,2]
[390023140,1759936254198,-500.0,0.00021369,2]
[390023141,1759936254208,-2031.57,0.00021369,2]
[390023142,1759936254216,-1000.0,0.00021369,2]
[390023143,1759936254225,-500.0,0.00021369,2]
[390023144,1759936254234,-500.0,0.00021369,2]
[390023145,1759936254242,-500.0,0.00021369,2]
[390023146,1759936254251,-500.0,0.00021369,2]
[390023147,1759936254260,-500.0,0.00021369,2]
[390023148,1759936254269,-503.29,0.00021369,2]
[390023149,1759936254282,-6998.09,0.00021369,2]
[390023150,1759936254291,-346.43586926,0.00021369,2]
[390023152,1759936254300,-979.31,0.00021369,2]
[390023154,1759936254309,-500.0,0.00021369,2]
[390023156,1759936254319,-525.84027649,0.00021369,2]
[390023158,1759936254328,-500.0,0.00021369,2]
[390023160,1759936254337,-563.34,0.00021369,2]
[390023162,1759936254348,-500.0,0.00021369,2]
[390023163,1759936254357,-500.0,0.00021369,2]
[390023165,1759936254367,-762.83,0.00021369,2]
[390023167,1759936254377,-769.24,0.00021369,2]
[390023169,1759936254387,-500.0,0.00021369,2]
[390023171,1759936254396,-500.0,0.00021369,2]
[390023173,1759936254405,-1123.59,0.00021369,2]
[390023175,1759936254415,-462.02476908,0.00021369,2]
[390023177,1759936254425,-500.0,0.00021369,2]
[390023180,1759936254434,-500.0,0.00021369,2]
[390023181,1759936254443,-779.22,0.00021369,2]
[390023183,1759936254453,-500.0,0.00021369,2]
[390023185,1759936254463,-1067.69,0.00021369,2]
[390023187,1759936254472,-500.0,0.00021369,2]
[390023189,1759936254481,-903.84,0.00021369,2]
[390023191,1759936254491,-500.0,0.00021369,2]
[390023194,1759936254501,-500.0,0.00021369,2]
[390023196,1759936254510,-500.0,0.00021369,2]
[390023197,1759936254519,-651.95,0.00021369,2]
[390023199,1759936254528,-500.0,0.00021369,2]
[390023201,1759936254537,-500.0,0.00021369,2]
[390023204,1759936254546,-1619.14,0.00021369,2]
[390023206,1759936254555,-500.0,0.00021369,2]
[390023207,1759936254564,-1128.71,0.00021369,2]
[390023209,1759936254573,-500.0,0.00021369,2]
[390023211,1759936254583,-500.40095359,0.00021369,2]
[390023213,1759936254593,-500.0,0.00021369,2]
[390023215,1759936254602,-568.53,0.00021369,2]
[390023218,1759936254611,-500.0,0.00021369,2]
[390023220,1759936254620,-1859.12,0.00021369,2]
[390023221,1759936254629,-875.77,0.00021369,2]
[390023223,1759936254638,-500.0,0.00021369,2]
[390023225,1759936254647,-875.77,0.00021369,2]
[390023227,1759936254656,-875.77,0.00021369,2]
[390023229,1759936254665,-875.77,0.00021369,2]
[390023231,1759936254674,-875.77,0.00021369,2]
[390023233,1759936254682,-500.0,0.00021369,2]
[390023235,1759936254691,-875.77,0.00021369,2]
[390023237,1759936254700,-875.77,0.00021369,2]
[390023239,1759936254709,-875.77,0.00021369,2]
[390023241,1759936254718,-500.0,0.00021369,2]
[390023243,1759936254728,-875.77,0.00021369,2]
[390023245,1759936254737,-500.0,0.00021369,2]
[390023247,1759936254747,-875.77,0.00021369,2]
[390023249,1759936254757,-875.77,0.00021369,2]
[390023251,1759936254766,-875.77,0.00021369,2]
[390023253,1759936254776,-875.77,0.00021369,2]
[390023255,1759936254785,-875.77,0.00021369,2]
[390023257,1759936254796,-875.77,0.00021369,2]
[390023259,1759936254806,-822.19,0.00021369,2]
[390023261,1759936254815,-875.77,0.00021369,2]
[390023263,1759936254824,-875.77,0.00021369,2]
[390023265,1759936254833,-875.77,0.00021369,2]
[390023267,1759936254842,-500.0,0.00021369,2]
[390023269,1759936254851,-875.77,0.00021369,2]
[390023271,1759936254860,-875.77,0.00021369,2]
[390023273,1759936254870,-875.77,0.00021369,2]
[390023275,1759936254880,-500.0,0.00021369,2]
[390023277,1759936254890,-875.77,0.00021369,2]
[390023279,1759936254899,-875.77,0.00021369,2]
[390023281,1759936254909,-875.98,0.00021369,2]
[390023283,1759936254918,-1065.13,0.00021369,2]
[390023285,1759936254927,-886.29,0.00021369,2]
[390023287,1759936254936,-606.73,0.00021369,2]
[390023289,1759936254945,-500.0,0.00021369,2]
[390023291,1759936254954,-979.24,0.00021369,2]
[390023293,1759936254964,-1497.3,0.00021369,2]
[390023295,1759936254973,-500.0,0.00021369,2]
[390023297,1759936254982,-500.0,0.00021369,2]
[390023299,1759936254992,-500.0,0.00021369,2]
[390023301,1759936255001,-500.0,0.00021369,2]
[390023303,1759936255011,-211.68002786,0.00021369,2]
[390023305,1759936255020,-1575.05,0.00021369,2]
[390023307,1759936255029,-630.52069328,0.00021369,2]
[390023309,1759936255038,-270.02160035,0.00021369,2]
[390023311,1759936255048,-500.0,0.00021369,2]
[390023313,1759936255057,-3442.42,0.00021369,2]
[390023315,1759936255065,-902.08,0.00021369,2]
[390023317,1759936255074,-500.0,0.00021369,2]
[390023319,1759936255083,-500.0,0.00021369,2]
[390023320,1759936255092,-500.0,0.00021369,2]
[390023322,1759936255103,-886.29,0.00021369,2]
[390023324,1759936255112,-500.0,0.00021369,2]
[390023326,1759936255122,-500.0,0.00021369,2]
[390023328,1759936255131,-500.0,0.00021369,2]
[390023330,1759936255140,-500.0,0.00021369,2]
[390023332,1759936255149,-500.0,0.00021369,2]
[390023334,1759936255158,-1801.03,0.00021369,2]
[390023336,1759936255167,-500.0,0.00021369,2]
[390023355,1759936255323,-2812.22,0.00021369,2]
[390023358,1759936255355,-1077.6,0.00021369,2]
[390023360,1759936255365,-752.22,0.00021369,2]
[390023361,1759936255374,-933.46,0.00021369,2]
[390023363,1759936255384,-500.0,0.00021369,2]
[390023365,1759936255394,-500.0,0.00021369,2]
[390023367,1759936255403,-500.0,0.00021369,2]
[390023369,1759936255412,-1186.19,0.00021369,2]
[390023371,1759936255421,-500.0,0.00021369,2]
[390023373,1759936255430,-852.66,0.00021369,2]
[390023375,1759936255439,-500.0,0.00021369,2]
[390023377,1759936255449,-672.32,0.00021369,2]
[390023379,1759936255458,-1128.17,0.00021369,2]
[390023381,1759936255468,-500.0,0.00021369,2]
[390023383,1759936255477,-744.66,0.00021369,2]
[390023385,1759936255486,-500.0,0.00021369,2]
[390023387,1759936255495,-500.0,0.00021369,2]
[390023389,1759936255504,-500.0,0.00021369,2]
[390023391,1759936255513,-500.0,0.00021369,2]
[390023393,1759936255522,-500.0,0.00021369,2]
[390023395,1759936255531,-500.46068717,0.00021369,2]
[390023397,1759936255540,-634.63,0.00021369,2]
[390023399,1759936255549,-500.0,0.00021369,2]
[390023401,1759936255558,-819.43,0.00021369,2]
[390023403,1759936255567,-1313.15,0.00021369,2]
[390023404,1759936255576,-500.0,0.00021369,2]
[390023406,1759936255586,-500.0,0.00021369,2]
[390023408,1759936255595,-1923.45,0.00021369,2]
[390023410,1759936255604,-500.0,0.00021369,2]
[390023412,1759936255613,-500.0,0.00021369,2]
[390023414,1759936255622,-500.0,0.00021369,2]
[390023416,1759936255632,-1042.93,0.00021369,2]
[390023418,1759936255641,-500.0,0.00021369,2]
[390023420,1759936255650,-500.0,0.00021369,2]
[390023422,1759936255659,-500.0,0.00021369,2]
[390023424,1759936255668,-699.49,0.00021369,2]
[390023426,1759936255677,-1088.78,0.00021369,2]
[390023428,1759936255687,-500.0,0.00021369,2]
[390023430,1759936255698,-1488.93,0.00021369,2]
[390023432,1759936255709,-500.0,0.00021369,2]
[390023434,1759936255720,-500.0,0.00021369,2]
[390023436,1759936255729,-500.0,0.00021369,2]
[390023438,1759936255738,-500.0,0.00021369,2]
[390023440,1759936255747,-500.0,0.00021369,2]
[390023442,1759936255756,-500.0,0.00021369,2]
[390023444,1759936255766,-500.0,0.00021369,2]
[390023446,1759936255775,-1493.51,0.00021369,2]
[390023448,1759936255785,-1493.51,0.00021369,2]
[390023449,1759936255793,-1493.51,0.00021369,2]
[390023451,1759936255803,-1493.51,0.00021369,2]
[390023454,1759936255813,-500.0,0.00021369,2]
[390023455,1759936255823,-1493.51,0.00021369,2]
[390023457,1759936255832,-1493.51,0.00021369,2]
[390023459,1759936255842,-1493.51,0.00021369,2]
[390023461,1759936255851,-1493.51,0.00021369,2]
[390023463,1759936255860,-1493.51,0.00021369,2]
[390023465,1759936255869,-1493.51,0.00021369,2]
[390023467,1759936255879,-1493.51,0.00021369,2]
[390023469,1759936255889,-1493.51,0.00021369,2]
[390023471,1759936255900,-1493.51,0.00021369,2]
[390023473,1759936255910,-500.0,0.00021369,2]
[390023475,1759936255919,-1493.51,0.00021369,2]
[390023477,1759936255928,-1493.51,0.00021369,2]
[390023479,1759936255937,-1493.51,0.00021369,2]
[390023481,1759936255946,-1493.51,0.00021369,2]
[390023483,1759936255955,-1493.51,0.00021369,2]
[390023485,1759936255966,-513.45,0.00021369,2]
[390023487,1759936255975,-1493.51,0.00021369,2]
[390023489,1759936255984,-1493.51,0.00021369,2]
[390023491,1759936255993,-1493.51,0.00021369,2]
[390023493,1759936256002,-1493.51,0.00021369,2]
[390023495,1759936256011,-500.0,0.00021369,2]
[390023497,1759936256020,-1493.51,0.00021369,2]
[390023499,1759936256030,-1493.55618366,0.00021369,2]
[390023501,1759936256040,-464.69227011,0.00021369,2]
[390023503,1759936256049,-1313.41,0.00021369,2]
[390023505,1759936256058,-500.0,0.00021369,2]
[390023507,1759936256067,-735.41,0.00021369,2]
[390023509,1759936256076,-1178.88,0.00021369,2]
[390023510,1759936256087,-830.64,0.00021369,2]
[390023512,1759936256096,-1494.73,0.00021369,2]
[390023514,1759936256106,-500.31414163,0.00021369,2]
[390023516,1759936256115,-500.0,0.00021369,2]
[390023519,1759936256125,-760.85,0.00021369,2]
[390023520,1759936256133,-760.85,0.00021369,2]
[390023522,1759936256142,-760.85,0.00021369,2]
[390023524,1759936256151,-760.85,0.00021369,2]
[390023526,1759936256160,-760.85,0.00021369,2]
[390023528,1759936256169,-760.85,0.00021369,2]
[390023530,1759936256178,-760.85,0.00021369,2]
[390023532,1759936256187,-760.85,0.00021369,2]
[390023534,1759936256196,-760.85,0.00021369,2]
[390023536,1759936256205,-760.85,0.00021369,2]
[390023538,1759936256215,-500.0,0.00021369,2]
[390023540,1759936256224,-760.85,0.00021369,2]
[390023542,1759936256234,-760.85,0.00021369,2]
[390023544,1759936256243,-500.0,0.00021369,2]
[390023546,1759936256252,-760.85,0.00021369,2]
[390023548,1759936256261,-760.85,0.00021369,2]
[390023550,1759936256272,-760.85,0.00021369,2]
[390023552,1759936256284,-772.16,0.00021369,2]
[390023554,1759936256293,-760.85,0.00021369,2]
[390023556,1759936256302,-5502.79,0.00021369,2]
[390023558,1759936256313,-760.85,0.00021369,2]
[390023560,1759936256322,-760.85,0.00021369,2]
[390023562,1759936256331,-500.0,0.00021369,2]
[390023564,1759936256341,-760.85,0.00021369,2]
[390023566,1759936256351,-760.85,0.00021369,2]
[390023568,1759936256360,-760.85,0.00021369,2]
[390023570,1759936256369,-500.0,0.00021369,2]
[390023572,1759936256378,-760.85,0.00021369,2]
[390023574,1759936256387,-500.0,0.00021369,2]
[390023576,1759936256397,-760.85,0.00021369,2]
[390023578,1759936256405,-760.9790148,0.00021369,2]
[390023580,1759936256414,-500.0,0.00021369,2]
[390023582,1759936256424,-480.5587753,0.00021369,2]
[390023584,1759936256432,-500.0,0.00021369,2]
[390023585,1759936256442,-500.0,0.00021369,2]
[390023587,1759936256451,-500.0,0.00021369,2]
[390023589,1759936256461,-500.0,0.00021369,2]
[390023591,1759936256471,-500.0,0.00021369,2]
[390023593,1759936256480,-482.08167547,0.00021369,2]
[390023595,1759936256489,-500.0,0.00021369,2]
[390023597,1759936256498,-3356.47,0.00021369,2]
[390023600,1759936256507,-267.05126449,0.00021369,2]
[390023601,1759936256516,-509.73600551,0.00021369,2]
[390023604,1759936256525,-481.50566544,0.00021369,2]
[390023605,1759936256534,-587.58,0.00021369,2]
[390023607,1759936256543,-1571.19,0.00021369,2]
[390023609,1759936256552,-500.0,0.00021369,2]
[390023611,1759936256561,-500.0,0.00021369,2]
[390023613,1759936256570,-500.0,0.00021369,2]
[390023615,1759936256579,-1693.4,0.00021369,2]
[390023616,1759936256587,-2669.9,0.00021369,2]
[390023617,1759936256596,-500.0,0.00021369,2]
[390023618,1759936256604,-935.07,0.00021369,2]
[390023619,1759936256613,-500.0,0.00021369,2]
[390023620,1759936256622,-829.97,0.00021369,2]
[390023621,1759936256631,-500.0,0.00021369,2]
[390023622,1759936256640,-500.0,0.00021369,2]
[390023624,1759936256649,-500.0,0.00021369,2]
[390023626,1759936256658,-500.0,0.00021369,2]
[390023628,1759936256666,-1419.7,0.00021369,2]
[390023630,1759936256675,-500.0,0.00021369,2]
[390023632,1759936256684,-1201.38,0.00021369,2]
[390023634,1759936256693,-500.0,0.00021369,2]
[390023636,1759936256702,-500.0,0.00021369,2]
[390023638,1759936256711,-2544.6,0.00021369,2]
[390023640,1759936256720,-654.46,0.00021369,2]
[390023642,1759936256729,-654.46,0.00021369,2]
[390023644,1759936256739,-654.46,0.00021369,2]
[390023646,1759936256747,-654.46,0.00021369,2]
[390023648,1759936256756,-654.46,0.00021369,2]
[390023650,1759936256765,-500.0,0.00021369,2]
[390023652,1759936256774,-654.46,0.00021369,2]
[390023653,1759936256783,-654.46,0.00021369,2]
[390023656,1759936256792,-654.46,0.00021369,2]
[390023658,1759936256802,-654.46,0.00021369,2]
[390023659,1759936256812,-500.0,0.00021369,2]
[390023661,1759936256821,-654.46,0.00021369,2]
[390023663,1759936256830,-654.46,0.00021369,2]
[390023666,1759936256839,-654.46,0.00021369,2]
[390023667,1759936256848,-2149.01,0.00021369,2]
[390023669,1759936256859,-654.46,0.00021369,2]
[390023672,1759936256869,-654.46,0.00021369,2]
[390023674,1759936256878,-654.46,0.00021369,2]
[390023676,1759936256888,-654.46,0.00021369,2]
[390023678,1759936256897,-654.46,0.00021369,2]
[390023680,1759936256907,-654.46,0.00021369,2]
[390023681,1759936256915,-654.46,0.00021369,2]
[390023683,1759936256924,-654.46,0.00021369,2]
[390023685,1759936256933,-654.46,0.00021369,2]
[390023688,1759936256943,-654.46,0.00021369,2]
[390023690,1759936256952,-654.46,0.00021369,2]
[390023692,1759936256962,-654.61897305,0.00021369,2]
[390023694,1759936256971,-1759.0,0.00021369,2]
[390023695,1759936256980,-500.0,0.00021369,2]
[390023698,1759936256989,-500.0,0.00021369,2]
[390023700,1759936256999,-500.0,0.00021369,2]
[390023701,1759936257008,-500.0,0.00021369,2]
[390023704,1759936257017,-500.0,0.00021369,2]
[390023705,1759936257026,-500.0,0.00021369,2]
[390023708,1759936257035,-500.0,0.00021369,2]
[390023710,1759936257045,-2095.91,0.00021369,2]
[390023711,1759936257054,-826.92,0.00021369,2]
[390023713,1759936257063,-933.17,0.00021369,2]
[390023716,1759936257072,-1790.0,0.00021369,2]
[390023717,1759936257081,-500.0,0.00021369,2]
[390023719,1759936257090,-500.0,0.00021369,2]
[390023721,1759936257099,-395.58439589,0.00021369,2]
[390023724,1759936257108,-500.0,0.00021369,2]
[390023726,1759936257117,-500.0,0.00021369,2]
[390023728,1759936257126,-2944.37,0.00021369,2]
[390023730,1759936257135,-918.88,0.00021369,2]
[390023732,1759936257144,-500.0,0.00021369,2]
[390023734,1759936257153,-500.0,0.00021369,2]
[390023736,1759936257162,-637.79,0.00021369,2]
[390023738,1759936257171,-534.58,0.00021369,2]
[390023740,1759936257181,-500.0,0.00021369,2]
[390023742,1759936257190,-500.0,0.00021369,2]
[390023744,1759936257198,-2017.69,0.00021369,2]
[390023746,1759936257208,-500.0,0.00021369,2]
[390023748,1759936257217,-500.0,0.00021369,2]
[390023750,1759936257226,-500.0,0.00021369,2]
[390023752,1759936257235,-500.0,0.00021369,2]
[390023754,1759936257244,-500.0,0.00021369,2]
[390023756,1759936257253,-500.0,0.00021369,2]
[390023758,1759936257262,-500.0,0.00021369,2]
[390023759,1759936257275,-500.0,0.00021369,2]